bitfinex-derivatives/quotes_ETHF0:USTF0_20250923
["timestamp","ask_amount","ask_price","bid_price","bid_amount"]
[1758656938378,3.7373,4157.5,4157.4,1.14956]
[1758656938773,0.7488,4157.5,4157.4,1.14956]
[1758656939980,0.8759,4157.5,4157.4,1.14956]
[1758656940381,0.8759,4157.5,4157.4,0.43276]
[1758656940581,0.8759,4157.5,4157.4,0.63556]
[1758656940775,0.8759,4157.5,4157.4,0.84736]
[1758656941083,0.8759,4157.5,4156.9,0.246]
[1758656941084,0.7488,4157.4,4157.3,0.63557]
[1758656941276,0.7488,4157.4,4157.3,0.43277]
[1758656942078,0.73867,4157.3,4157.1,0.43279]
[1758656942377,0.4429,4157.3,4157.2,0.43278]
[1758656942682,0.9948,4157.3,4157.2,1.14958]
[1758656943380,0.9948,4157.3,4157.2,0.43278]
[1758656944079,1.54801033,4157.3,4157.2,0.43278]
[1758656945285,0.4429,4157.1,4157.0,0.4328]
[1758656945479,1.18159,4157.1,4157.0,0.4328]
[1758656946084,0.7488,4156.6,4156.5,0.2028]
[1758656946383,0.7488,4156.6,4156.5,0.43285]
[1758656946583,0.9948,4156.6,4156.5,0.43285]
[1758656946784,1.42764,4156.6,4156.5,0.43285]
[1758656946984,1.42764,4156.6,4156.0,0.3022]
[1758656946985,0.7488,4156.1,4156.0,0.2028]
[1758656947183,0.7488,4156.1,4156.0,0.63571]
[1758656947879,0.7488,4156.1,4155.7,0.3022]
[1758656947880,0.7488,4155.8,4155.7,0.63574]
[1758656948284,0.3059,4155.7,4155.6,0.43295]
[1758656948482,0.7488,4155.7,4155.6,0.43295]
[1758656948880,0.3059,4155.6,4155.5,0.43296]
[1758656949085,0.7488,4155.6,4155.5,0.43296]
[1758656949393,0.7488,4155.3,4155.2,0.43298]
[1758656949579,0.7488,4155.3,4155.2,0.63578]
[1758656950091,0.8759,4155.0,4154.9,0.43302]
[1758656950283,0.7488,4154.6,4154.5,0.43305]
[1758656951186,0.7488,4154.4,4154.3,0.44551402]
[1758656951692,0.7488,4154.4,4154.3,0.01243402]
[1758656955380,0.7488,4154.4,4154.3,0.73623402]
[1758656955578,3.2078,4154.6,4154.4,0.43307]
[1758656955785,3.2078,4154.6,4154.5,0.8448]
[1758656956182,1.1129,4155.0,4154.9,0.64612]
[1758656957388,0.8669,4155.0,4154.9,0.84952]
[1758656957578,0.9858,4155.0,4154.9,1.15682]
[1758656957779,1.116,4155.0,4154.9,0.43302]
[1758656958391,0.7398,4154.8,4154.7,0.43303]
[1758656960091,0.9858,4154.8,4154.7,0.43303]
[1758656961288,0.1302,4154.5,4154.3,0.01243402]
[1758656961490,0.7398,4154.4,4154.3,0.44551402]
[1758656961793,0.9858,4154.4,4154.3,0.44551402]
[1758656962788,0.9858,4154.4,4154.3,0.65861402]
[1758656964396,0.7398,4154.4,4154.3,1.19781402]
[1758656964598,0.5554,4155.0,4154.9,0.43302]
[1758656964895,0.8014,4155.0,4154.9,0.43302]
[1758656965198,1.0046,4155.0,4154.9,1.21132]
[1758656965993,1.1378,4155.0,4154.9,1.21132]
[1758656966392,3.2078,4155.1,4155.0,0.89841]
[1758656966696,3.2078,4155.1,4155.0,1.34091]
[1758656966896,3.4258,4155.1,4155.0,1.34091]
[1758656967787,3.7592,4155.1,4155.0,1.21131]
[1758656969396,0.464,4155.2,4155.1,1.2113]
[1758656970586,0.6712,4155.2,4155.1,0.8755]
[1758656970791,0.4252,4154.8,4154.7,3.7675]
[1758656970993,0.7586,4154.8,4154.7,4.20054]
[1758656971200,0.7586,4154.8,4154.7,4.41914]
[1758656971394,0.7586,4154.8,4154.7,4.08334]
[1758656971592,0.7586,4154.8,4154.7,4.41914]
[1758656973095,0.3334,4155.2,4154.8,1.08259]
[1758656973297,0.3334,4155.4,4155.3,1.21128]
[1758656973493,0.3334,4155.8,4155.5,0.87546]
[1758656973697,0.3334,4155.8,4155.5,1.34086]
[1758656975498,3.7592,4155.6,4155.5,1.34086]
[1758656975896,3.7592,4155.6,4155.5,1.21126]
[1758656976397,3.9664,4155.6,4155.5,1.21126]
[1758656976591,3.9664,4155.6,4155.5,0.65686]
[1758656976897,3.9664,4155.6,4155.5,0.43296]
[1758656977097,4.2124,4155.6,4155.5,0.43296]
[1758656977291,4.76271081,4155.6,4155.5,0.43296]
[1758656978192,4.76271081,4155.6,4155.0,0.246]
[1758656978395,0.7586,4155.1,4155.0,0.67901]
[1758656978596,1.30891081,4155.1,4155.0,0.67901]
[1758656978804,1.30891081,4155.1,4155.0,0.90291]
[1758656979806,0.8918,4155.0,4154.3,0.34823402]
[1758656980000,0.7586,4154.4,4154.3,0.23633402]
[1758656980195,0.7586,4154.4,4154.3,0.44551402]
[1758656980602,0.7586,4154.4,4154.3,0.66941402]
[1758656980895,1.0046,4154.4,4154.3,0.66941402]
[1758656981201,1.0046,4154.4,4154.3,0.44551402]
[1758656981693,1.55488956,4154.4,4154.3,0.44551402]
[1758656982504,1.55488956,4154.4,4154.3,0.01243402]
[1758656983699,0.7586,4153.2,4153.1,3.4317]
[1758656984001,0.7586,4153.2,4153.1,3.9861]
[1758656984202,0.7586,4153.2,4153.1,4.41931]
[1758656985500,3.2078,4153.8,4153.7,0.4425]
[1758656985697,3.2078,4153.8,4153.7,1.21145]
[1758656986096,0.7974,4154.1,4154.0,0.87561]
[1758656986296,0.4252,4153.8,4153.7,3.64095]
[1758656986602,0.7586,4153.8,4153.7,3.64095]
[1758656988298,0.7586,4153.8,4153.7,3.86485]
[1758656988498,0.7586,4153.8,4153.7,3.64095]
[1758656988700,0.7586,4153.8,4153.7,0.43315]
[1758656989097,0.7586,4153.8,4153.6,0.43315]
[1758656989305,1.0046,4153.7,4153.6,0.43315]
[1758656992204,1.32497,4153.5,4153.4,0.43317]
[1758656992514,0.8918,4153.0,4152.9,0.45730985]
[1758656992814,1.1378,4153.0,4152.9,0.45730985]
[1758656993110,1.1378,4153.0,4152.9,0.02407985]
[1758656993111,4.77882,4153.0,4152.9,0.02407985]
[1758656993308,0.3093,4152.6,4152.0,4.73029]
[1758656993508,0.5126,4152.1,4152.0,4.48922]
[1758656993706,0.6376,4152.5,4152.4,0.74288]
[1758656994014,1.0451,4152.5,4152.4,1.15178]
[1758656994207,1.0451,4152.5,4152.4,0.84218]
[1758656994407,1.0451,4152.5,4152.4,0.43328]
[1758656994715,1.0451,4152.5,4152.4,0.63908]
[1758656995013,1.0451,4152.5,4151.5,0.1296]
[1758656995014,4.2529,4152.5,4151.5,3.3374]
[1758656995213,4.0479,4152.0,4151.5,3.2078]
[1758656995402,0.7151,4151.6,4151.5,4.35968]
[1758656995910,3.8454,4152.0,4151.9,0.84223]
[1758656996200,0.5126,4152.0,4151.9,1.15183]
[1758656996405,0.7151,4152.3,4152.2,0.8422]
[1758656996608,0.9611,4152.3,4152.2,0.8422]
[1758656996816,0.9611,4152.3,4152.2,0.2058]
[1758656997119,0.7151,4152.2,4152.1,0.63911]
[1758656998314,0.7151,4152.2,4151.5,4.35968]
[1758656998315,0.5126,4151.6,4151.5,4.35968]
[1758656998511,0.2033,4151.6,4151.5,4.35968]
[1758656998716,0.125,4152.0,4151.9,0.63913]
[1758656998717,0.8401,4152.0,4151.9,0.63913]
[1758656999215,0.8401,4152.0,4151.9,1.15183]
[1758657000114,0.8401,4152.0,4151.9,0.84223]
[1758657000316,0.7151,4152.4,4152.3,0.4089]
[1758657000510,0.4058,4152.0,4151.9,0.63913]
[1758657000711,3.7386,4152.0,4151.7,0.43335]
[1758657000918,3.3328,4152.0,4151.9,0.43333]
[1758657001103,3.7386,4152.0,4151.9,0.63913]
[1758657001309,3.7386,4152.0,4151.9,0.84223]
[1758657001507,4.2939,4152.0,4151.9,0.63913]
[1758657002110,3.2078,4152.0,4151.9,1.15183]
[1758657002313,3.7204,4152.6,4152.5,1.15177]
[1758657002516,0.2033,4152.4,4152.3,0.43329]
[1758657002716,0.7151,4152.4,4152.3,0.4089]
[1758657003014,0.1332,4153.0,4152.7,0.2058]
[1758657003218,0.246,4152.9,4152.5,0.3096]
[1758657003518,0.246,4152.9,4152.8,0.74284]
[1758657003711,0.246,4152.9,4152.8,1.15174]
[1758657004023,0.7586,4152.9,4152.8,1.15174]
[1758657004205,0.9611,4152.9,4152.4,0.3096]
[1758657004518,0.7151,4152.1,4152.0,3.2078]
[1758657004722,0.7151,4152.1,4152.0,4.35962]
[1758657005413,0.2033,4152.1,4152.0,4.35962]
[1758657005620,0.8401,4153.0,4152.9,0.63903]
[1758657005806,1.0871,4153.0,4152.9,0.63903]
[1758657006007,1.0871,4153.0,4152.9,0.2058]
[1758657006212,1.0871,4153.0,4152.9,0.43323]
[1758657006410,0.3093,4153.4,4153.0,0.43322]
[1758657006612,0.3093,4153.4,4153.0,0.7185]
[1758657006811,0.2033,4153.4,4153.3,1.15169]
[1758657007022,3.4111,4153.6,4153.5,1.15167]
[1758657007221,3.9674,4153.6,4153.5,1.15167]
[1758657007420,4.1699,4153.6,4153.5,1.15167]
[1758657007625,4.1699,4153.6,4153.5,0.84207]
[1758657007921,4.1699,4153.6,4153.5,0.43317]
[1758657008511,3.9229,4153.6,4153.5,0.63897]
[1758657008717,4.1689,4153.6,4153.5,1.15167]
[1758657008911,3.9229,4153.6,4153.5,0.84207]
[1758657009123,4.1689,4153.6,4153.5,1.15167]
[1758657009316,3.6571,4153.6,4153.5,1.15167]
[1758657009829,3.9664,4153.6,4153.5,1.15167]
[1758657010027,4.1689,4153.6,4153.1,0.3096]
[1758657010331,0.7151,4153.2,4153.1,0.94861]
[1758657010524,0.2033,4153.2,4153.1,1.15171]
[1758657010928,0.7151,4153.2,4153.1,1.15171]
[1758657011134,0.8401,4153.0,4152.9,0.43322]
[1758657011331,0.43323,4152.9,4152.5,3.2078]
[1758657011537,0.7151,4152.6,4152.5,3.64107]
[1758657011739,0.9611,4152.6,4152.5,3.64107]
[1758657012034,0.7586,4152.6,4152.5,4.38567]
[1758657012229,0.2075,4151.9,4151.8,0.5386]
[1758657012422,0.5424,4151.9,4151.8,1.19184]
[1758657012625,0.7624,4151.9,4151.8,1.19184]
[1758657013027,0.2075,4151.9,4151.8,1.19184]
[1758657013333,0.7884,4152.2,4152.1,0.65301]
[1758657013534,1.0084,4152.2,4152.1,0.65301]
[1758657013738,1.0084,4152.2,4152.1,0.43331]
[1758657014034,1.0084,4152.2,4152.1,0.65301]
[1758657014236,1.0084,4152.2,4152.1,0.43331]
[1758657014822,0.5538,4152.0,4151.9,0.43333]
[1758657015031,0.8887,4152.0,4151.9,0.43333]
[1758657015237,0.7624,4151.9,4151.8,0.87294]
[1758657015536,0.5424,4151.9,4151.8,1.19184]
[1758657016429,0.7624,4151.9,4151.8,0.43334]
[1758657016635,0.7624,4151.9,4151.6,0.43336]
[1758657016831,0.55963,4152.0,4151.5,3.2078]
[1758657016832,0.3349,4151.6,4151.5,3.2078]
[1758657017035,0.7624,4151.6,4151.5,3.2078]
[1758657017232,0.7624,4151.6,4151.5,3.4275]
[1758657017427,0.7624,4151.6,4151.5,3.9663]
[1758657017624,1.0084,4151.6,4151.5,3.9663]
[1758657018932,0.5424,4151.6,4151.5,3.9663]
[1758657019140,0.7884,4152.0,4151.9,1.19183]
[1758657019335,1.0084,4152.0,4151.9,0.87293]
[1758657019530,1.1347,4152.0,4151.9,0.65303]
[1758657019725,1.1347,4152.0,4151.9,0.43333]
[1758657019930,1.1347,4152.0,4151.5,3.5267]
[1758657019931,1.23313,4152.0,4151.8,0.43334]
[1758657020125,0.7624,4151.9,4151.1,0.3189]
[1758657020330,0.7624,4151.7,4151.6,0.65307]
[1758657022735,0.7624,4151.6,4151.5,0.43337]
[1758657022937,1.0084,4151.6,4151.5,0.43337]
[1758657025644,1.0084,4151.6,4151.5,0.65577]
[1758657025839,3.5408,4152.1,4151.8,0.435]
[1758657026144,3.5408,4152.1,4152.0,1.18192]
[1758657026145,4.0057,4152.1,4152.0,1.18192]
[1758657026441,0.77,4151.9,4151.8,0.43333]
[1758657026740,0.77,4151.9,4151.8,0.65573]
[1758657027439,0.77,4151.9,4151.8,0.43333]
[1758657027836,1.20333,4151.9,4151.8,0.43333]
[1758657030340,0.77,4151.9,4151.8,0.43333]
[1758657030546,0.77,4151.9,4151.8,0.65573]
[1758657031243,0.77,4151.6,4151.5,0.43337]
[1758657031442,4.77189571,4151.6,4151.5,0.43337]
[1758657031640,0.2189,4151.1,4151.0,0.95963]
[1758657031844,0.77,4151.1,4151.0,1.18203]
[1758657032039,0.77,4151.1,4151.0,0.86843]
[1758657033031,0.77,4151.1,4151.0,1.18203]
[1758657035543,0.77,4151.1,4151.0,0.86843]
[1758657035738,0.77,4151.1,4151.0,1.18203]
[1758657036046,0.77,4151.1,4151.0,0.65583]
[1758657038445,0.77,4150.7,4150.6,0.43347]
[1758657038750,1.016,4150.7,4150.6,1.18207]
[1758657039147,0.1347,4151.0,4150.9,0.43344]
[1758657039344,0.8177,4151.0,4150.9,1.18204]
[1758657039654,0.8177,4151.0,4150.9,0.86844]
[1758657039949,1.58413,4151.0,4150.9,0.86844]
[1758657040141,1.20345,4150.8,4150.7,0.43346]
[1758657040344,0.77,4150.8,4150.7,1.18206]
[1758657040749,1.016,4150.8,4150.7,1.18206]
[1758657041651,0.7979,4150.8,4150.7,1.18206]
[1758657042247,0.2189,4150.8,4150.7,1.18206]
[1758657042447,3.2078,4151.1,4151.0,0.43343]
[1758657042648,4.43961135,4151.1,4151.0,0.43343]
[1758657042851,4.77261135,4151.1,4151.0,0.65583]
[1758657043052,3.9778,4151.1,4151.0,1.18203]
[1758657043252,4.2238,4151.1,4151.0,0.43343]
[1758657043570,4.2238,4151.1,4150.6,1.39728]
[1758657043571,0.77,4150.7,4150.6,1.18207]
[1758657043856,1.016,4150.7,4150.6,1.18207]
[1758657044349,3.2078,4151.1,4150.5,1.21348]
[1758657044555,3.7597,4151.1,4151.0,1.18203]
[1758657044748,4.77298712,4151.1,4151.0,1.18203]
[1758657047059,4.52698712,4151.1,4151.0,1.18203]
[1758657047258,4.77298712,4151.1,4151.0,1.18203]
[1758657047553,4.77298712,4151.1,4150.1,1.08377]
[1758657047761,0.2189,4150.4,4150.3,0.7486]
[1758657048060,0.77,4150.4,4150.3,1.18209]
[1758657048751,0.77,4150.4,4150.3,0.86849]
[1758657049658,0.77,4150.4,4150.3,1.18209]
[1758657050261,1.20348,4150.4,4150.3,0.43349]
[1758657050552,0.43349,4150.3,4150.2,0.2224]
[1758657050863,1.11649,4150.3,4150.2,0.6559]
[1758657051155,1.11649,4150.3,4150.2,0.4335]
[1758657051156,1.44949,4150.3,4150.2,0.4335]
[1758657052855,0.333,4149.8,4149.4,3.4302]
[1758657053160,0.77,4149.6,4149.5,1.18218]
[1758657053350,0.99257684,4149.6,4149.5,1.18218]
[1758657054859,0.44147684,4149.6,4149.5,1.18218]
[1758657055056,0.44147684,4149.6,4149.5,1.31608]
[1758657055655,0.22257684,4149.6,4149.5,1.31608]
[1758657055853,3.7319,4150.1,4150.0,1.19183]
[1758657056054,0.2113,4149.6,4149.5,0.87128]
[1758657056249,0.74664334,4149.6,4149.5,1.19188]
[1758657057849,0.22254334,4149.6,4149.5,1.32578]
[1758657058050,0.5241,4149.8,4149.7,0.7583]
[1758657058255,0.7464982,4149.8,4149.7,1.19186]
[1758657058650,0.9593982,4149.8,4149.7,1.19186]
[1758657059853,0.95944323,4149.8,4149.7,1.19186]
[1758657060162,0.95944323,4149.8,4149.7,0.4377]
[1758657060459,0.95944323,4149.8,4149.7,0.64926]
[1758657060847,0.95944323,4149.8,4149.7,1.19186]
[1758657061352,1.39299323,4149.8,4149.7,0.87126]
[1758657061559,1.39299323,4149.8,4149.7,0.64926]
[1758657061956,1.39299323,4149.8,4149.7,0.43356]
[1758657062464,1.39299323,4149.8,4149.4,0.2157]
[1758657062465,0.3353,4149.5,4149.4,0.2157]
[1758657062663,1.01504323,4149.5,4149.4,0.64929]
[1758657062961,1.32784323,4149.5,4149.4,0.2157]
[1758657063157,0.737,4149.0,4148.9,0.2157]
[1758657063363,0.737,4149.0,4148.1,1.08432]
[1758657063364,4.16763544,4149.0,4148.1,1.08432]
[1758657063567,0.737,4148.1,4148.0,0.7583]
[1758657063861,1.20544323,4148.1,4148.0,0.4377]
[1758657064058,1.20544323,4148.1,4147.9,0.02410888]
[1758657064258,1.20544323,4148.1,4147.2,0.3206]
[1758657064259,0.1224,4147.5,4147.2,0.3206]
[1758657064563,0.1224,4147.5,4146.9,3.2078]
[1758657064564,0.737,4147.2,4147.1,0.43384]
[1758657064867,0.95944323,4147.2,4147.1,0.43384]
[1758657065065,0.3337,4147.0,4146.9,3.85735]
[1758657065363,1.1064,4147.0,4146.9,0.43385]
[1758657065662,1.32803219,4147.0,4146.9,0.43385]
[1758657066361,0.5241,4146.9,4146.8,1.19216]
[1758657066657,3.8543,4147.5,4147.4,0.6495]
[1758657066962,4.322699,4147.5,4147.4,1.1921]
[1758657067463,4.535599,4147.5,4147.4,0.8715]
[1758657068662,0.737,4147.1,4147.0,0.43385]
[1758657068862,0.737,4146.9,4146.8,0.43386]
[1758657069062,0.737,4146.9,4146.8,1.19216]
[1758657069659,0.95793063,4146.9,4146.8,1.19216]
[1758657069858,0.984,4146.9,4146.8,1.19216]
[1758657070367,0.984,4146.9,4146.8,0.87156]
[1758657071459,0.3128,4147.3,4146.8,1.84296]
[1758657071763,0.7619,4147.1,4147.0,0.4068]
[1758657072469,0.7619,4147.1,4147.0,0.2039]
[1758657073053,0.8921,4147.0,4146.9,0.43386]
[1758657073858,4.0999,4147.0,4146.9,0.43386]
[1758657074060,3.6703,4147.0,4146.9,1.16846]
[1758657074261,4.0999,4147.0,4146.9,1.16846]
[1758657074467,3.9697,4147.0,4146.9,1.16846]
[1758657075462,3.2078,4147.0,4146.9,1.16846]
[1758657075662,0.247,4147.1,4147.0,0.8659]
[1758657076163,1.0089,4147.1,4147.0,0.4068]
[1758657076366,0.5598,4147.0,4146.9,0.43386]
[1758657076664,0.3323,4146.9,4146.8,0.43386]
[1758657076871,0.3323,4146.9,4146.8,0.2039]
[1758657076872,0.7619,4146.9,4146.8,0.2039]
[1758657077058,0.4296,4146.5,4146.4,4.37631]
[1758657077370,0.8921,4146.5,4146.4,0.84071]
[1758657077962,0.8921,4146.5,4146.4,1.16851]
[1758657078262,0.7619,4146.5,4146.4,1.16851]
[1758657078765,0.7619,4146.5,4146.4,4.37631]
[1758657078968,0.8921,4146.5,4146.4,0.84071]
[1758657079170,0.8921,4146.5,4146.4,0.63701]
[1758657079366,0.8921,4146.5,4146.4,0.83991]
[1758657079567,3.7676,4147.0,4146.9,0.84066]
[1758657079766,0.2242083,4147.0,4146.9,1.16846]
[1758657080068,3.3302,4147.5,4146.6,1.08472]
[1758657080069,4.0146,4147.5,4147.4,0.6377]
[1758657080267,4.57113156,4147.5,4147.4,0.6377]
[1758657080468,4.57113156,4147.5,4147.4,0.8406]
[1758657080771,4.57113156,4147.5,4147.4,1.1684]
[1758657081082,4.57113156,4147.5,4146.9,0.3278]
[1758657081264,0.7619,4147.0,4146.9,1.16846]
[1758657081766,0.98625471,4147.0,4146.9,1.16846]
[1758657082368,0.98625471,4147.0,4146.9,0.84066]
[1758657082576,1.11645471,4147.0,4146.9,0.84066]
[1758657082968,0.98625471,4147.0,4146.9,1.16846]
[1758657083268,1.36345471,4147.0,4146.9,1.18006]
[1758657083964,0.7413,4146.9,4146.8,0.43386]
[1758657084165,0.96565471,4146.9,4146.8,0.43386]
[1758657084361,0.7413,4146.8,4146.7,0.43388]
[1758657084565,0.7413,4146.8,4146.4,3.2078]
[1758657084566,0.1316,4146.5,4146.4,3.4149]
[1758657084774,0.8729,4146.5,4146.4,4.06271]
[1758657085076,1.09725471,4146.5,4146.4,3.84881]
[1758657085276,1.34425471,4146.5,4146.4,3.84881]
[1758657085470,1.21265471,4146.5,4146.4,4.38791]
[1758657085972,0.96565471,4146.5,4146.4,4.38791]
[1758657086368,0.96565471,4146.5,4146.4,0.85491]
[1758657086673,1.09725471,4146.5,4146.4,0.85491]
[1758657087077,0.96565471,4146.5,4146.4,1.18011]
[1758657090270,1.09725471,4146.5,4146.4,1.18011]
[1758657091463,1.09725471,4146.5,4146.4,0.64101]
[1758657091669,1.09725471,4146.5,4146.4,0.43391]
[1758657093272,1.64517365,4146.5,4146.4,0.43391]
[1758657093678,2.07907365,4146.5,4146.4,0.43391]
[1758657094080,1.64517365,4146.5,4146.4,0.43391]
[1758657095186,2.07907365,4146.5,4146.4,0.64101]
[1758657095485,1.64517365,4146.5,4146.4,0.64101]
[1758657096887,1.89249551,4146.5,4146.4,0.64101]
[1758657099082,2.32639551,4146.5,4146.4,0.43391]
[1758657100186,1.89249551,4146.5,4146.4,0.43391]
[1758657100883,2.32639551,4146.5,4146.4,0.43391]
[1758657101283,1.89249551,4146.5,4146.4,0.43391]
[1758657102386,1.89249551,4146.5,4146.4,1.18011]
[1758657102589,1.89249551,4146.5,4146.4,0.85491]
[1758657102885,1.89149551,4146.5,4146.4,0.64101]
[1758657103083,0.22435471,4146.5,4146.4,4.38791]
[1758657103677,0.22435471,4146.5,4146.4,1.18011]
[1758657109294,0.22435471,4146.7,4146.4,3.533]
[1758657109593,0.22435471,4146.6,4146.5,0.8677]
[1758657109790,0.22435471,4146.6,4146.5,1.3016]
[1758657109994,0.5359,4147.2,4147.1,0.5323]
[1758657110196,0.96707344,4147.2,4147.1,1.18003]
[1758657110490,0.76167344,4147.2,4147.1,1.18003]
[1758657110690,0.96707344,4147.2,4147.1,0.85483]
[1758657110891,1.40089344,4147.2,4147.1,0.43383]
[1758657111099,0.8729,4147.0,4146.9,0.43385]
[1758657111298,1.09867344,4147.0,4146.9,0.43385]
[1758657111798,1.53251344,4147.0,4146.9,0.43385]
[1758657111999,2.32644778,4147.0,4146.9,0.43385]
[1758657112393,1.77851344,4147.0,4146.9,0.43385]
[1758657112598,0.8729,4146.5,4146.4,0.64101]
[1758657112906,1.09867344,4146.5,4146.4,0.43391]
[1758657113093,1.09867344,4146.5,4146.4,0.64101]
[1758657113501,1.09867344,4146.5,4146.4,0.85491]
[1758657113798,0.96707344,4146.5,4146.4,1.16601]
[1758657114297,1.10017344,4146.5,4146.4,1.16601]
[1758657114498,1.10017344,4146.5,4146.4,0.85491]
[1758657115398,1.10017344,4146.5,4146.4,1.16601]
[1758657116103,0.736,4145.4,4145.3,3.64182]
[1758657116399,0.96177344,4145.4,4145.3,0.43402]
[1758657116591,0.22577344,4145.4,4145.3,0.43402]
[1758657116990,0.22577344,4145.4,4145.3,5.43402]
[1758657117189,0.3112,4146.2,4145.7,1.08494]
[1758657117495,0.736,4146.2,4146.1,0.43394]
[1758657117902,0.3112,4146.2,4146.1,3.64174]
[1758657119596,0.4443,4146.5,4146.1,3.4548]
[1758657119801,0.3112,4146.8,4146.7,0.43388]
[1758657120000,0.3112,4146.8,4146.7,3.88868]
[1758657120295,0.1316,4147.0,4146.9,0.43386]
[1758657120501,0.4428,4147.0,4146.9,0.43386]
[1758657120901,0.6613,4147.0,4146.9,0.68086]
[1758657121498,0.4428,4147.0,4146.9,0.68086]
[1758657121797,0.4443,4147.5,4147.4,0.4338]
[1758657122101,0.1331,4148.0,4147.9,0.43375]
[1758657122102,0.8691,4148.0,4147.9,0.43375]
[1758657122306,0.8691,4148.0,4147.4,0.247]
[1758657122307,0.8691,4147.5,4147.4,0.6808]
[1758657122802,0.8691,4147.5,4147.4,0.4338]
[1758657123498,0.736,4147.4,4147.3,0.43381]
[1758657124604,0.1331,4147.5,4147.3,0.43381]
[1758657124804,0.1331,4147.5,4147.2,0.247]
[1758657124805,0.4443,4148.0,4147.9,0.43375]
[1758657125099,0.1331,4149.5,4148.4,0.8557]
[1758657125402,0.1331,4150.0,4149.9,0.43354]
[1758657126202,0.1331,4149.5,4148.8,3.2078]
[1758657126398,0.1331,4149.0,4148.8,0.68166]
[1758657127094,0.3112,4149.0,4148.9,3.2078]
[1758657127293,0.3112,4149.5,4149.4,0.43359]
[1758657127499,0.3112,4149.5,4149.4,0.68939]
[1758657127902,3.2078,4149.9,4149.7,0.43356]
[1758657128097,3.2078,4150.4,4150.2,0.43351]
[1758657128297,0.3112,4150.3,4150.2,0.43351]
[1758657129200,0.3112,4150.3,4149.4,3.2078]
[1758657129397,0.3112,4150.3,4150.1,0.43352]
[1758657129603,3.2078,4150.4,4150.1,0.43352]
[1758657129804,0.3112,4150.3,4149.4,3.2078]
[1758657130106,0.3112,4149.9,4149.8,0.43355]
[1758657133000,0.3112,4149.9,4148.9,3.88945]
[1758657133001,0.1252,4149.0,4148.9,3.88945]
[1758657133206,0.4543,4149.0,4148.9,3.64145]
[1758657133906,0.4543,4149.0,4148.9,3.84865]
[1758657133907,0.6562,4149.0,4148.9,3.84865]
[1758657134507,0.6562,4149.0,4148.9,4.05055]
[1758657135005,3.2078,4150.4,4149.8,0.68905]
[1758657135206,0.1252,4151.0,4150.6,1.08367]
[1758657135207,3.2078,4150.9,4150.6,1.08367]
[1758657135408,3.2078,4150.9,4150.7,0.68896]
[1758657135602,3.2078,4150.9,4150.8,0.2555]
[1758657136002,0.3291,4151.4,4151.2,0.43341]
[1758657136205,3.333,4151.5,4151.4,0.43338]
[1758657136803,3.6621,4151.5,4151.4,0.43338]
[1758657140307,3.6621,4151.5,4151.2,0.4334]
[1758657140503,0.3291,4151.4,4151.3,0.4334]
[1758657141408,0.531,4151.4,4151.3,0.6406]
[1758657142000,0.84308,4151.4,4151.2,0.4334]
[1758657142308,0.6562,4151.0,4150.9,0.88864]
[1758657142812,0.864,4151.0,4150.9,0.43344]
[1758657143214,0.864,4151.0,4150.9,0.64064]
[1758657143512,0.6562,4151.0,4150.9,0.85324]
[1758657146813,0.5389,4151.0,4150.9,0.85324]
[1758657147010,0.6604,4151.0,4150.9,0.85324]
[1758657147808,3.333,4151.5,4151.4,0.63959]
[1758657147809,3.5428,4151.5,4151.4,0.63959]
[1758657148110,3.7617,4151.5,4151.4,0.43339]
[1758657148315,4.0779,4151.5,4151.4,0.43339]
[1758657148813,0.4414,4151.5,4151.4,1.10739]
[1758657149113,0.7449,4151.9,4151.8,0.43334]
[1758657150112,0.7449,4151.9,4151.8,0.85214]
[1758657150305,0.526,4151.9,4151.8,0.85214]
[1758657150617,0.7449,4151.9,4151.8,0.85214]
[1758657151314,3.333,4152.0,4151.8,0.85214]
[1758657151315,3.333,4152.0,4151.9,0.43333]
[1758657151611,0.8701,4152.5,4152.4,0.43328]
[1758657153303,1.41836124,4152.5,4152.4,0.43328]
[1758657156617,1.41836124,4152.5,4151.7,3.2078]
[1758657156819,0.2098,4151.2,4151.1,3.2078]
[1758657157021,0.4287,4151.2,4151.1,0.43342]
[1758657157522,1.29376706,4151.2,4151.1,0.43342]
[1758657157719,0.97756706,4151.2,4150.6,3.2078]
[1758657158026,0.7449,4150.3,4150.2,0.43351]
[1758657158220,1.29376706,4150.3,4150.2,0.43351]
[1758657158521,0.526,4149.6,4149.5,0.43358]
[1758657158722,0.3162,4149.6,4149.5,0.43358]
[1758657158916,0.56749552,4149.6,4149.5,0.43358]
[1758657159418,0.56749552,4149.6,4148.4,3.2078]
[1758657159419,0.1215,4149.0,4148.4,3.2078]
[1758657159621,0.1215,4149.0,4148.4,3.6415]
[1758657159622,0.4377,4148.5,4148.4,3.6415]
[1758657159820,0.68899552,4148.5,4148.4,0.4337]
[1758657160215,0.3162,4148.4,4147.7,3.2078]
[1758657160421,0.3162,4147.9,4147.8,0.43376]
[1758657160620,0.56749552,4147.9,4147.7,3.2078]
[1758657160820,0.3162,4147.4,4147.3,0.43381]
[1758657161021,0.3162,4147.4,4146.4,3.64171]
[1758657161022,0.1215,4146.5,4146.4,3.64171]
[1758657161223,0.68899552,4146.5,4146.4,3.64171]
[1758657161924,0.68899552,4146.5,4145.6,3.2078]
[1758657162233,0.1215,4146.0,4145.6,3.2078]
[1758657162421,0.56749552,4145.9,4145.8,0.43396]
[1758657164113,0.4377,4145.0,4144.9,3.64186]